bitfinex-derivatives/quotes_SOLF0:USTF0_20240920
["timestamp","ask_amount","ask_price","bid_price","bid_amount"]
[1726842427106,0.61405076,148.09,148.05,3.36734004]
[1726842427403,0.61405076,148.09,148.02,25.99]
[1726842427796,0.61405076,148.09,148.02,25.95]
[1726842427999,0.61405076,148.09,148.08,3.3763]
[1726842429399,0.61405076,148.09,148.03,1.297]
[1726842429998,0.61405076,148.09,148.07,3.3764]
[1726842430402,0.61405076,148.09,148.0,6.06026797]
[1726842430600,0.61405076,148.09,148.05,3.3769]
[1726842431201,0.61405076,148.09,147.99,25.95]
[1726842431396,0.61405076,148.09,147.96,27.247]
[1726842431806,3.3771,148.05,147.96,27.247]
[1726842432103,1.3516,148.08,148.0,3.3781]
[1726842432104,25.95,148.06,148.0,3.3781]
[1726842432303,4.0434,148.08,147.96,1.297]
[1726842432705,25.95,148.06,147.98,3.3784]
[1726842432899,25.95,148.06,147.95,138.42157443]
[1726842433205,4.0434,148.08,147.97,25.95]
[1726842433599,3.3768,148.07,147.97,25.95]
[1726842433799,4.0434,148.08,148.0,3.378]
[1726842433995,4.0434,148.08,147.95,164.37157443]
[1726842433996,4.0434,148.08,147.95,138.42157443]
[1726842434610,3.377,148.06,147.95,138.42157443]
[1726842434806,4.0434,148.08,148.0,3.378]
[1726842435010,3.3769,148.06,148.0,3.378]
[1726842435208,0.61405076,148.09,148.02,25.95]
[1726842435912,0.61405076,148.09,148.07,3.3764]
[1726842436110,0.61405076,148.09,148.02,25.95]
[1726842436310,0.61405076,148.09,148.03,1.2879]
[1726842436608,4.29737418,148.11,148.1,3.3759]
[1726842437411,3.72525873,148.16,148.12,3.3754]
[1726842438508,3.72525873,148.16,148.13,3.3752]
[1726842443510,3.72525873,148.16,148.11,25.92]
[1726842443707,3.72525873,148.16,148.08,25.92]
[1726842444115,3.72525873,148.16,148.06,135.04]
[1726842444609,3.72525873,148.16,148.12,3.3753]
[1726842445111,3.72525873,148.16,148.06,135.04]
[1726842446014,3.72525873,148.16,148.12,3.3753]
[1726842447110,3.72525873,148.16,148.11,3.3756]
[1726842447413,6.41425873,148.16,148.11,3.3756]
[1726842448007,9.78875873,148.16,148.1,3.3758]
[1726842448211,9.78875873,148.16,148.06,135.04]
[1726842448212,6.41425873,148.16,148.06,135.04]
[1726842448808,6.41425873,148.16,148.08,25.92]
[1726842449507,25.92,148.15,148.02,29.2373499]
[1726842449715,1.3406,148.13,148.02,25.92]
[1726842450015,1.3406,148.13,148.02,3.45452704]
[1726842450212,25.92,148.12,148.0,25.92]
[1726842450416,3.3763,148.09,148.03,3.3774]
[1726842450713,2.7076,148.08,148.0,29.35427182]
[1726842451108,6.0841,148.08,148.02,3.3776]
[1726842451312,3.94719255,148.14,148.03,25.92]
[1726842451510,2.7076,148.13,148.05,25.92]
[1726842451910,2.7076,148.13,148.05,29.34279386]
[1726842452308,2.7076,148.13,148.05,25.92]
[1726842452507,2.7076,148.13,148.11,3.3756]
[1726842452705,3.94719255,148.14,148.05,25.92]
[1726842453615,3.94719255,148.14,148.08,3.3762]
[1726842453811,3.94719255,148.14,148.03,25.92]
[1726842454208,7.32229255,148.14,148.03,25.92]
[1726842454516,3.94719255,148.14,148.03,25.92]
[1726842454713,3.3754,148.12,148.06,3.3767]
[1726842454914,3.3754,148.12,148.03,25.92]
[1726842455219,7.32229255,148.14,148.08,3.3761]
[1726842455416,7.32229255,148.14,148.03,25.92]
[1726842455417,3.94719255,148.14,148.03,25.92]
[1726842456014,25.92,148.07,147.91,578.7602]
[1726842456208,4.1002,148.06,148.01,3.3778]
[1726842456414,4.1002,148.06,147.95,25.92]
[1726842456811,4.1002,148.06,148.02,3.3775]
[1726842458317,1.0,148.13,147.98,29.21731983]
[1726842458318,25.92,148.12,147.98,29.21731983]
[1726842458617,25.92,148.12,148.05,3.3769]
[1726842458618,4.7485,148.11,148.05,3.3769]
[1726842458818,1.3727,148.11,147.98,29.21731983]
[1726842459018,1.3727,148.11,148.0,25.92]
[1726842459225,1.3727,148.11,148.07,3.3764]
[1726842459717,1.3727,148.11,148.0,25.92]
[1726842460420,3.376,148.1,148.05,3.3768]
[1726842460717,1.3727,148.11,148.05,3.3768]
[1726842461019,1.3727,148.11,148.06,3.3768]
[1726842461020,4.7485,148.11,148.06,3.3768]
[1726842461520,1.3727,148.11,148.0,29.31941907]
[1726842462220,1.3727,148.11,148.03,25.92]
[1726842462612,1.2923,148.12,148.03,25.92]
[1726842463312,4.6679,148.12,148.0,29.31941907]
[1726842463514,4.6679,148.12,148.01,6.05052316]
[1726842463712,1.2923,148.12,148.04,3.3772]
[1726842463911,3.94719255,148.14,148.0,29.31941907]
[1726842464116,3.94719255,148.14,148.03,25.92]
[1726842464413,3.94719255,148.14,148.06,25.92]
[1726842465320,3.94719255,148.14,148.1,3.3757]
[1726842465709,3.94719255,148.14,148.03,25.92]
[1726842466511,3.94719255,148.14,148.06,25.92]
[1726842467620,3.94719255,148.14,148.1,3.3757]
[1726842467824,3.94719255,148.14,148.06,25.92]
[1726842468012,3.94719255,148.14,148.13,3.3752]
[1726842468213,3.94719255,148.14,148.03,25.92]
[1726842468424,25.92,148.13,148.04,6.05129076]
[1726842468627,25.92,148.13,148.05,3.3769]
[1726842468817,25.92,148.13,148.0,6.05129076]
[1726842469018,25.92,148.13,148.0,9.48063845]
[1726842469613,3.3765,148.08,148.0,9.48063845]
[1726842469817,3.3765,148.08,148.0,3.42934769]
[1726842470018,25.92,148.1,147.99,6.05129076]
[1726842470019,2.5976,148.09,147.99,6.05129076]
[1726842470217,2.5976,148.09,148.0,3.30778751]
[1726842470631,1.3106,148.09,147.99,6.05129076]
[1726842470925,1.3106,148.09,147.99,25.92]
[1726842471131,1.3106,148.09,147.99,35.28728338]
[1726842471330,1.3106,148.09,148.04,3.3771]
[1726842471624,27.207,148.13,148.0,6.06287254]
[1726842471821,28.5219,148.13,148.0,6.06287254]
[1726842472128,2.6019,148.13,148.01,6.06287254]
[1726842472330,2.6019,148.13,148.08,3.3763]
[1726842472535,2.6019,148.13,148.02,6.06287254]
[1726842472536,2.6019,148.13,148.0,6.06287254]
[1726842472723,2.6019,148.13,148.01,6.06287254]
[1726842472936,5.9771,148.13,148.02,6.06287254]
[1726842473126,2.6019,148.13,148.0,6.06287254]
[1726842473326,2.6019,148.13,148.02,25.92]
[1726842473523,2.6019,148.13,148.03,6.06287254]
[1726842473730,3.94719255,148.14,148.07,25.92]
[1726842474029,3.94719255,148.14,148.08,6.06287254]
[1726842474226,3.94719255,148.14,148.13,3.3752]
[1726842476324,3.94719255,148.14,148.08,6.06287254]
[1726842476325,3.94719255,148.14,148.12,3.3754]
[1726842477130,3.94719255,148.14,148.05,25.92]
[1726842477328,3.94719255,148.14,148.08,6.06155106]
[1726842477526,3.94719255,148.14,148.06,6.06155106]
[1726842477725,3.94719255,148.14,148.05,25.92]
[1726842477921,3.94719255,148.14,148.06,6.06155106]
[1726842478833,3.94719255,148.14,148.03,6.06155106]
[1726842479039,3.94719255,148.14,148.1,3.3757]
[1726842479230,3.94719255,148.14,148.03,6.07043485]
[1726842479423,3.94719255,148.14,148.02,36.06565377]
[1726842479424,3.94719255,148.14,148.04,6.07043485]
[1726842479626,3.94719255,148.14,148.05,6.07043485]
[1726842479825,3.94719255,148.14,148.06,6.07043485]
[1726842480026,3.94719255,148.14,148.03,6.07043485]
[1726842480227,3.94719255,148.14,148.04,6.07043485]
[1726842480451,3.94719255,148.14,148.05,6.06028027]
[1726842480734,3.94719255,148.14,148.1,3.3757]
[1726842480942,3.94719255,148.14,148.03,6.06028027]
[1726842481125,1.3343,148.13,148.04,6.06028027]
[1726842481327,1.3343,148.13,148.03,6.06028027]
[1726842481531,1.3343,148.13,148.04,6.06028027]
[1726842481736,1.3343,148.13,148.09,3.376]
[1726842482126,1.3343,148.13,148.07,3.3764]
[1726842482437,1.3225,148.12,148.07,3.3764]
[1726842482825,1.3358,148.11,148.03,6.07336958]
[1726842483022,1.3358,148.11,148.02,3.39025377]
[1726842483328,1.3358,148.11,148.09,3.376]
[1726842484134,1.3358,148.11,148.0,25.92]
[1726842484135,3.94719255,148.14,148.05,29.30476514]
[1726842484327,3.94719255,148.14,148.07,25.92]
[1726842484520,3.94719255,148.14,148.13,3.3752]
[1726842487333,3.94719255,148.14,148.09,3.30880367]
[1726842487534,3.94719255,148.14,148.09,6.06542496]
[1726842487741,3.94719255,148.14,148.08,6.06542496]
[1726842487928,3.94719255,148.14,148.09,6.06542496]
[1726842488125,3.94719255,148.14,148.08,6.06542496]
[1726842488333,3.94719255,148.14,148.07,29.35032676]
[1726842488334,3.94719255,148.14,148.09,6.06542496]
[1726842488533,3.94719255,148.14,148.13,3.3752]
[1726842488937,3.94719255,148.14,148.07,3.43032676]
[1726842489242,3.94719255,148.14,148.06,6.07176177]
[1726842489427,3.94719255,148.14,148.07,6.07176177]
[1726842489628,3.94719255,148.14,148.09,3.376]
[1726842489831,3.94719255,148.14,148.07,6.07176177]
[1726842490133,3.94719255,148.14,148.09,3.3759]
[1726842490435,3.94719255,148.14,148.04,6.07176177]
[1726842490735,3.94719255,148.14,148.05,6.07176177]
[1726842490933,3.94719255,148.14,148.06,6.07176177]
[1726842491137,3.94719255,148.14,148.07,6.07176177]
[1726842491338,3.94719255,148.14,148.08,6.07176177]
[1726842491537,3.94719255,148.14,148.09,6.07176177]
[1726842491839,3.94719255,148.14,148.07,6.07176177]
[1726842492033,3.94719255,148.14,148.08,6.07176177]
[1726842492335,7.32229255,148.14,148.08,3.3762]
[1726842492542,33.24229255,148.14,148.09,6.07852549]
[1726842492837,29.86719255,148.14,148.08,3.3762]
[1726842493142,29.86719255,148.14,148.09,3.376]
[1726842493526,29.86719255,148.14,148.1,3.3757]
[1726842493745,29.86719255,148.14,148.02,25.92]
[1726842493746,29.86719255,148.14,148.04,6.07852549]
[1726842494040,29.86719255,148.14,148.05,6.07852549]
[1726842494241,29.86719255,148.14,148.06,6.07852549]
[1726842494436,33.24239255,148.14,148.07,6.07852549]
[1726842494644,33.24239255,148.14,148.08,3.3763]
[1726842495033,29.86719255,148.14,148.08,3.3763]
[1726842495236,3.3752,148.13,148.08,3.3763]
[1726842495641,33.24229255,148.14,148.08,3.3763]
[1726842495843,33.24229255,148.14,148.05,6.08670305]
[1726842496148,3.3752,148.13,148.06,6.08670305]
[1726842496443,3.3752,148.13,148.04,3.44802417]
[1726842496647,29.86719255,148.14,148.05,6.08692807]
[1726842496836,29.86719255,148.14,148.06,6.08692807]
[1726842497142,3.3753,148.13,148.04,6.08692807]
[1726842497345,29.86719255,148.14,148.05,6.08692807]
[1726842497542,3.94719255,148.14,148.07,25.92]
[1726842497742,3.94719255,148.14,148.08,6.08692807]
[1726842497947,3.94719255,148.14,148.09,6.08057101]
[1726842498140,3.94719255,148.14,148.13,3.3752]
[1726842498636,3.94719255,148.14,148.1,9.47184894]
[1726842498841,3.94719255,148.14,148.08,6.08057101]
[1726842499141,3.94719255,148.14,148.13,3.3752]
[1726842499940,3.94719255,148.14,148.13,9.45577101]
[1726842500144,3.94719255,148.14,148.13,3.3752]
[1726842500742,3.94719255,148.14,148.13,9.45577101]
[1726842501149,3.72525873,148.16,148.15,3.3747]
[1726842501349,3.72525873,148.16,148.15,38.81806547]
[1726842501653,3.87537596,148.19,148.18,3.3741]
[1726842501949,6.40884818,148.25,148.18,25.92]
[1726842502144,4.69023182,148.28,148.2,25.92]
[1726842502341,4.69023182,148.28,148.24,25.92]
[1726842502740,4.69023182,148.28,148.21,25.92]
[1726842503049,4.69023182,148.28,148.18,25.92]
[1726842503249,4.69023182,148.28,148.21,25.92]
[1726842503960,4.69023182,148.28,148.21,29.23859601]
[1726842504446,4.69023182,148.28,148.26,3.3721]
[1726842504643,4.69023182,148.28,148.21,29.23859601]
[1726842505547,4.69023182,148.28,148.26,3.3722]
[1726842505943,4.69023182,148.28,148.21,29.23859601]
[1726842506345,5.72055801,148.3,148.27,25.92]
[1726842506543,5.72055801,148.3,148.27,29.33370054]
[1726842506850,5.72055801,148.3,148.29,3.3716]
[1726842507747,2.42055801,148.3,148.29,3.3716]
[1726842508455,2.42055801,148.3,148.29,6.7415683]
[1726842509849,6.67572581,148.31,148.3,3.3713]
[1726842510148,4.87320661,148.33,148.29,29.2899683]
[1726842510352,4.87320661,148.33,148.32,3.3709]
[1726842510948,4.84662432,148.38,148.32,25.92]
[1726842511147,4.84662432,148.38,148.32,29.21187731]
[1726842511541,4.84662432,148.38,148.37,3.3697]
[1726842512150,1.32262216,148.39,148.38,3.3695]
[1726842512355,4.80150226,148.41,148.37,29.35410852]
[1726842512660,4.80150226,148.41,148.4,3.3691]
[1726842512953,3.99059569,148.44,148.4,29.24457027]
[1726842513744,3.99059569,148.44,148.43,3.3684]
[1726842515668,3.99059569,148.44,148.4,3.32457027]
[1726842515854,3.99059569,148.44,148.37,25.92]
[1726842516167,3.99059569,148.44,148.37,29.30272935]
[1726842516469,3.99059569,148.44,148.37,3.38272935]
[1726842516663,3.99059569,148.44,148.39,3.3693]
[1726842516863,3.99059569,148.44,148.4,3.37262562]
[1726842517165,3.99059569,148.44,148.34,134.78]
[1726842517460,3.99059569,148.44,148.35,27.15819299]
[1726842517661,3.99059569,148.44,148.36,1.23819299]
[1726842517869,3.99059569,148.44,148.35,25.92]
[1726842517870,3.99059569,148.44,148.37,1.23811812]
[1726842518062,3.99059569,148.44,148.36,1.23811812]
[1726842518270,3.99059569,148.44,148.4,3.3689]
[1726842518455,3.99059569,148.44,148.35,25.92]
[1726842518658,3.99059569,148.44,148.36,1.23811311]
[1726842519459,3.99059569,148.44,148.37,1.23811247]
[1726842519663,3.99059569,148.44,148.38,1.23811247]
[1726842519864,3.99059569,148.44,148.35,25.92]
[1726842520168,5.33349569,148.44,148.36,1.23821452]
[1726842520360,5.33349569,148.44,148.37,1.23821613]
[1726842520572,5.33349569,148.44,148.35,25.92]
[1726842520868,5.33349569,148.44,148.34,138.12175424]
[1726842520869,5.33349569,148.44,148.36,1.23822491]
[1726842521058,5.33349569,148.44,148.34,138.12175424]
[1726842521365,5.33349569,148.44,148.35,1.23825336]
[1726842521774,5.33349569,148.44,148.36,1.23825336]
[1726842521969,5.33349569,148.44,148.34,1.23825336]
[1726842522274,5.33349569,148.44,148.35,1.23825336]
[1726842522570,5.33349569,148.44,148.36,1.23825336]
[1726842522868,5.33349569,148.44,148.37,1.23825336]
[1726842523067,5.33349569,148.44,148.38,1.23825336]
[1726842523363,5.33349569,148.44,148.41,3.3688]
[1726842523760,5.33349569,148.44,148.35,25.92]
[1726842523961,5.33349569,148.44,148.36,1.2381234]
[1726842524265,5.33349569,148.44,148.37,1.2381234]
[1726842524464,6.44106875,148.45,148.38,3.3694]
[1726842524662,6.44106875,148.45,148.34,25.92]
[1726842525566,9.80916875,148.45,148.37,3.3696]
[1726842525762,9.80916875,148.45,148.34,25.92]
[1726842526073,6.44106875,148.45,148.38,3.3694]
[1726842527263,6.44106875,148.45,148.34,25.92]
[1726842528772,6.44106875,148.45,148.38,3.3694]
[1726842528962,6.44106875,148.45,148.34,25.92]
[1726842529265,6.44106875,148.45,148.38,3.3694]
[1726842529669,1.3551,148.44,148.38,3.3694]
[1726842530370,1.3551,148.44,148.39,3.3693]
[1726842530568,1.3551,148.44,148.34,25.92]
[1726842532275,6.44106875,148.45,148.43,3.3683]
[1726842532483,6.44106875,148.45,148.39,25.92]
[1726842532673,6.44106875,148.45,148.39,29.27242752]
[1726842532973,6.44106875,148.45,148.41,3.3686]
[1726842533180,6.44106875,148.45,148.39,29.27242752]
[1726842533377,6.44106875,148.45,148.44,3.3681]
[1726842533974,6.44106875,148.45,148.43,3.3683]
[1726842534176,6.44106875,148.45,148.39,29.27242752]
[1726842534374,6.44106875,148.45,148.39,3.35242752]
[1726842534584,6.44106875,148.45,148.42,3.3686]
[1726842534780,30.36999193,148.45,148.42,3.3686]
[1726842535470,30.36999193,148.45,148.41,3.3687]
[1726842535673,30.36999193,148.45,148.37,3.37690254]
[1726842535876,30.36999193,148.45,148.34,25.92]
[1726842536080,30.36999193,148.45,148.34,29.23761726]
[1726842536580,30.36999193,148.45,148.39,3.3691]
[1726842536778,30.36999193,148.45,148.34,29.23761726]
[1726842538778,30.36999193,148.45,148.41,3.3688]
[1726842539488,56.28999193,148.45,148.34,29.23761726]
[1726842539986,25.92,148.43,148.34,3.31761726]
[1726842540177,25.92,148.43,148.31,27.2547]
[1726842540178,2.8262,148.42,148.31,1.3347]
[1726842540382,2.8262,148.42,148.37,3.3695]
[1726842540383,1.3345,148.41,148.37,3.3695]
[1726842540779,1.3345,148.41,148.37,1.2391]
[1726842540979,25.92,148.39,148.21,1.333]
[1726842541184,1.3345,148.41,148.22,25.92]
[1726842541185,25.92,148.36,148.22,25.92]
[1726842541381,4.69366539,148.41,148.26,3.3722]
[1726842541382,25.92,148.33,148.26,3.3722]
[1726842541582,25.92,148.33,148.22,3.36017607]
[1726842541783,25.92,148.33,148.21,1.333]
[1726842542083,25.92,148.33,148.27,3.372]
[1726842542274,25.92,148.33,148.21,4.75785963]
[1726842542474,25.92,148.33,148.27,3.372]
[1726842542888,25.92,148.33,148.21,4.75785963]
[1726842543288,1.4068,148.35,148.22,25.92]
[1726842544291,1.4068,148.35,148.24,25.92]
[1726842544491,1.4068,148.35,148.21,4.75785963]
[1726842544492,1.4068,148.35,148.27,25.92]
[1726842544889,1.4068,148.35,148.24,1.3077]
[1726842545088,1.4068,148.35,148.25,25.92]
[1726842545384,25.92,148.41,148.28,25.92]
[1726842545585,1.3607,148.39,148.31,25.92]
[1726842545793,30.36999193,148.45,148.4,3.3689]
[1726842546093,30.36999193,148.45,148.34,25.92]
[1726842546299,30.36999193,148.45,148.34,29.34672587]
[1726842546687,30.36999193,148.45,148.35,1.3231]
[1726842546997,30.36999193,148.45,148.35,136.0831]
[1726842547491,25.92,148.44,148.37,3.3697]
[1726842547799,25.92,148.42,148.35,134.76]
[1726842548092,25.92,148.44,148.35,134.76]
[1726842548292,25.92,148.41,148.26,1.3231]
[1726842548491,25.92,148.39,148.26,1.3231]
[1726842548685,1.3183,148.38,148.31,3.3709]
[1726842548889,1.3183,148.38,148.26,1.3231]
[1726842549091,1.3183,148.38,148.33,3.3706]
[1726842549294,1.3183,148.38,148.31,3.32075471]
[1726842549493,1.3183,148.38,148.26,1.3231]
[1726842549693,1.3183,148.38,148.34,3.3703]
[1726842549895,1.3183,148.38,148.31,3.40052285]
[1726842550192,1.3183,148.38,148.37,3.3697]
[1726842550387,2.6346,148.4,148.34,3.35906539]
[1726842550591,1.3296,148.44,148.33,25.92]
[1726842550796,2.6598,148.44,148.33,25.92]
[1726842551385,2.6598,148.44,148.34,1.402]
[1726842551602,2.6598,148.44,148.35,25.92]
[1726842552099,2.6598,148.44,148.42,3.3684]
[1726842552401,1.3296,148.44,148.42,3.3684]
[1726842552987,1.3296,148.44,148.34,1.402]
[1726842553388,1.3296,148.44,148.37,3.3697]
[1726842554100,1.3296,148.44,148.38,3.3695]
[1726842555403,1.3296,148.44,148.34,1.402]
[1726842555699,25.92,148.37,148.3,3.44366557]
[1726842555901,1.3379,148.36,148.31,3.3711]
[1726842556205,1.3379,148.36,148.25,2.705]
[1726842556498,2.734,148.36,148.31,3.371]
[1726842557108,2.734,148.36,148.33,3.3706]
[1726842557406,2.734,148.36,148.25,2.705]
[1726842557594,2.734,148.36,148.32,3.3707]
[1726842557795,2.734,148.36,148.29,3.29063574]
[1726842557996,2.734,148.36,148.25,2.705]
[1726842558401,2.734,148.36,148.33,3.3705]
[1726842558602,1.3379,148.36,148.29,3.38603114]
[1726842558814,1.3379,148.36,148.25,2.705]
[1726842559710,1.3379,148.36,148.26,134.78]
[1726842560209,1.3379,148.36,148.33,3.3705]
[1726842560411,1.3379,148.36,148.29,3.40861211]
[1726842560705,1.3379,148.36,148.26,134.78]
[1726842561912,1.3379,148.36,148.33,3.3705]
[1726842562910,1.3379,148.36,148.34,3.3703]
[1726842563096,27.2576,148.4,148.3,3.31794498]
[1726842563297,1.4012,148.4,148.27,25.92]
[1726842563503,1.4012,148.4,148.3,25.92]
[1726842563712,1.4012,148.4,148.31,6.7422]
[1726842564309,1.4012,148.4,148.38,3.3694]
[1726842565005,1.4012,148.4,148.32,1.414]
[1726842565306,27.3212,148.4,148.31,5.9941439]
[1726842565513,27.3212,148.4,148.3,3.31727088]
[1726842565811,27.3212,148.4,148.35,3.37]
[1726842566002,27.3212,148.4,148.32,3.35299844]
[1726842566198,27.3212,148.4,148.34,3.3702]
[1726842567203,1.4012,148.4,148.32,3.36838574]
[1726842567405,1.4012,148.4,148.31,6.01657674]
[1726842567604,1.4012,148.4,148.38,3.3694]
[1726842567805,1.4012,148.4,148.31,9.39709473]
[1726842568005,1.4012,148.4,148.31,3.38051799]
[1726842568207,1.4012,148.4,148.31,6.02145181]
[1726842568412,1.4012,148.4,148.3,29.24019373]
[1726842568612,1.4012,148.4,148.31,6.01969274]
[1726842568814,1.4012,148.4,148.38,3.3693]
[1726842569003,1.4012,148.4,148.31,6.01969274]
[1726842569308,27.3212,148.4,148.31,6.01969274]
[1726842569510,27.3212,148.4,148.3,3.32019373]
[1726842569901,27.3212,148.4,148.35,3.37]
[1726842571204,1.4012,148.4,148.31,6.03308276]
[1726842571410,1.4012,148.4,148.32,6.03308276]
[1726842571712,1.4012,148.4,148.37,3.3696]
[1726842572208,1.4012,148.4,148.32,6.03308276]
[1726842572414,1.4012,148.4,148.33,6.03308276]
[1726842572616,1.4012,148.4,148.34,6.03308276]
[1726842572909,1.4012,148.4,148.33,6.03308276]
[1726842573102,1.4012,148.4,148.34,6.03308276]
[1726842573307,1.4012,148.4,148.32,10.0287516]
[1726842573308,1.4012,148.4,148.39,3.3693]
[1726842573503,1.4012,148.4,148.33,6.03308276]
[1726842573707,1.4012,148.4,148.34,6.03308276]
[1726842574008,1.4012,148.4,148.32,10.0287516]
[1726842574221,1.4012,148.4,148.33,6.04399941]
[1726842574404,1.4012,148.4,148.38,3.3693]
[1726842574608,1.4012,148.4,148.35,6.04399941]
[1726842574805,1.4012,148.4,148.36,6.04399941]
[1726842575009,1.4012,148.4,148.37,3.3696]
[1726842575305,1.4012,148.4,148.38,6.05531544]
[1726842575510,1.4012,148.4,148.33,6.05531544]
[1726842575709,1.4012,148.4,148.34,6.05531544]
[1726842575913,1.4012,148.4,148.35,6.05531544]
[1726842576116,1.4012,148.4,148.36,9.42511544]
[1726842576417,1.4012,148.4,148.37,6.05531544]
[1726842576714,1.4012,148.4,148.33,3.33558337]
[1726842577009,1.4012,148.4,148.34,6.06510231]
[1726842577215,1.4012,148.4,148.36,3.3698]
[1726842577408,1.4012,148.4,148.37,6.06510231]
[1726842577615,1.4012,148.4,148.36,3.37]
[1726842577808,1.4012,148.4,148.37,6.06369396]
[1726842578002,1.4012,148.4,148.28,6.7435]
[1726842578208,1.4012,148.4,148.29,6.06443629]
[1726842578414,1.4012,148.4,148.3,6.06443629]
[1726842578611,1.4012,148.4,148.28,6.7435]
[1726842578806,1.4012,148.4,148.29,6.06562025]
[1726842579010,1.4012,148.4,148.3,6.06562025]
[1726842579216,1.4012,148.4,148.31,6.06562025]
[1726842579420,1.4012,148.4,148.32,6.06562025]
[1726842579717,1.4012,148.4,148.33,6.06562025]
[1726842579918,1.4012,148.4,148.34,6.06562025]
[1726842580116,1.4012,148.4,148.35,6.06562025]
[1726842580415,1.4012,148.4,148.27,27.334]
[1726842580618,25.92,148.39,148.28,6.06718146]
[1726842580914,25.92,148.39,148.29,6.06718146]
[1726842581113,25.92,148.39,148.3,6.06718146]
[1726842581310,25.92,148.39,148.31,6.06718146]
[1726842581506,25.92,148.39,148.32,6.06684069]
[1726842581719,25.92,148.39,148.33,6.06684069]
[1726842581913,25.92,148.39,148.34,6.06684069]
[1726842582108,25.92,148.39,148.35,6.06684069]
[1726842582312,25.92,148.37,148.26,134.78]
[1726842582621,6.1067,148.36,148.29,3.3714]
[1726842582811,6.1067,148.36,148.3,6.06831481]
[1726842583009,6.1067,148.36,148.31,6.06831481]
[1726842583217,6.1067,148.36,148.32,6.06831481]
[1726842583517,25.92,148.34,148.18,6.7478]
[1726842583710,25.92,148.28,148.22,6.07164243]
[1726842583911,25.92,148.28,148.17,1.3723]
[1726842583912,25.92,148.28,148.23,6.07164243]
[1726842584120,2.6077,148.27,148.24,6.07164243]
[1726842584318,25.92,148.26,148.16,111.74722975]
[1726842584523,29.26255175,148.26,148.16,115.13428143]
[1726842584815,25.92,148.26,148.16,115.13428143]
[1726842585317,25.92,148.26,148.16,3.38705168]
[1726842585507,25.92,148.26,148.14,136.1723]
[1726842586309,25.92,148.23,148.14,136.1723]
[1726842586509,25.92,148.2,148.14,3.40316842]
[1726842586713,25.92,148.2,148.08,2.7126]
[1726842587316,25.92,148.2,148.13,3.3752]
[1726842588023,25.92,148.14,148.05,134.84]
[1726842588218,25.92,148.14,148.05,136.222]
[1726842591721,25.92,148.14,148.05,1.382]
[1726842591928,25.92,148.14,148.08,3.3762]
[1726842592114,25.92,148.14,148.05,1.382]
[1726842593228,25.92,148.14,148.08,3.3762]
[1726842593413,25.92,148.14,148.05,1.382]
[1726842594429,25.92,148.14,148.05,4.83350516]
[1726842594728,28.6126,148.17,148.05,30.75350516]
[1726842594925,1.3852,148.17,148.05,30.75350516]
[1726842595118,25.92,148.21,148.08,25.92]
[1726842595319,27.3053,148.21,148.08,25.92]
[1726842595624,25.92,148.19,148.13,3.3751]
[1726842595923,25.92,148.19,148.05,30.75350516]
[1726842596830,25.92,148.19,148.14,3.3748]
[1726842597622,25.92,148.19,148.13,3.3752]
[1726842597822,25.92,148.19,148.05,30.75350516]
[1726842598154,25.92,148.19,148.12,3.3753]
[1726842598425,25.92,148.19,148.05,30.75350516]
[1726842598830,25.92,148.19,148.13,3.3751]
[1726842599026,25.92,148.17,148.05,4.83350516]
[1726842599222,25.92,148.14,148.08,3.3762]
[1726842599535,25.92,148.15,148.05,4.83350516]
[1726842599721,25.92,148.15,148.08,3.3761]
[1726842600331,25.92,148.15,148.05,4.83350516]
[1726842600627,25.92,148.18,148.05,4.83350516]
[1726842600822,25.92,148.2,148.05,30.75350516]
[1726842601927,29.2936,148.2,148.05,30.75350516]
[1726842602520,25.92,148.2,148.08,25.92]
[1726842602721,25.92,148.2,148.09,1.2958]